fUSD/lending_fUSD_20260319
["ID","MTS","AMOUNT","RATE_DAILY","PERIOD"]
[408585697,1773904329063,-574.989656,0.000164,2]
[408585698,1773904329073,-352.236427,0.000164,2]
[408585699,1773904329082,-194.03456,0.000164,2]
[408585700,1773904329091,-316.057658,0.000164,2]
[408585701,1773904329101,-151.0,0.000164,2]
[408585702,1773904329110,-151.0,0.000164,2]
[408585703,1773904329119,-352.236427,0.000164,2]
[408585704,1773904329128,-574.989656,0.000164,2]
[408585705,1773904329137,-151.0,0.000164,2]
[408585706,1773904329147,-316.057658,0.000164,2]
[408585707,1773904329159,-1651.820882,0.000164,2]
[408585708,1773904329170,-151.0,0.000164,2]
[408585709,1773904329179,-151.0,0.000164,2]
[408585710,1773904329188,-256.79382,0.000164,2]
[408585711,1773904329198,-352.236427,0.000164,2]
[408585712,1773904329207,-574.989666,0.000164,2]
[408585713,1773904329216,-1651.820882,0.000164,2]
[408585714,1773904329226,-151.0,0.000164,2]
[408585715,1773904329236,-256.79382,0.000164,2]
[408585716,1773904329246,-352.236419,0.000164,2]
[408585717,1773904329255,-2199.815114,0.000164,2]
[408585718,1773904329264,-2635.334568,0.000164,2]
[408585719,1773904329274,-1651.820882,0.000164,2]
[408585720,1773904329283,-256.79382,0.000164,2]
[408585721,1773904329293,-2199.815114,0.000164,2]
[408585722,1773904329302,-2635.334568,0.000164,2]
[408585723,1773904329311,-1651.82088,0.000164,2]
[408585724,1773904329321,-151.0,0.000164,2]
[408585725,1773904329330,-256.793814,0.000164,2]
[408585726,1773904329340,-2199.815115,0.000164,2]
[408585727,1773904329350,-2635.334568,0.000164,2]
[408585728,1773904329359,-316.057658,0.000164,2]
[408585729,1773904329369,-151.0,0.000164,2]
[408585730,1773904329378,-2635.334571,0.000164,2]
[408585731,1773904329387,-316.057651,0.000164,2]
[408585732,1773904329397,-151.0,0.000164,2]
[408585733,1773904329407,-1185.85355,0.000164,2]
[408585734,1773904329417,-151.0,0.000164,2]
[408585735,1773904329427,-1185.85355,0.000164,2]
[408585736,1773904329437,-1185.85355,0.000164,2]
[408585737,1773904329446,-252.461609,0.000164,2]
[408585738,1773904329456,-766.398952,0.000164,2]
[408585739,1773904329467,-1185.853551,0.000164,2]
[408585740,1773904329477,-1999.652305,0.000164,2]
[408585741,1773904329487,-252.461609,0.000164,2]
[408585742,1773904329496,-151.0,0.000164,2]
[408585743,1773904329506,-151.0,0.000164,2]
[408585744,1773904329516,-766.398952,0.000164,2]
[408585745,1773904329526,-1999.652305,0.000164,2]
[408585746,1773904329536,-252.461609,0.000164,2]
[408585747,1773904329545,-151.0,0.000164,2]
[408585748,1773904329555,-766.398952,0.000164,2]
[408585749,1773904329565,-1999.652305,0.000164,2]
[408585750,1773904329574,-252.4616,0.000164,2]
[408585751,1773904329583,-151.0,0.000164,2]
[408585752,1773904329593,-766.398952,0.000164,2]
[408585753,1773904329603,-1999.652309,0.000164,2]
[408585754,1773904329613,-606.713391,0.000164,2]
[408585755,1773904329623,-267.897834,0.000164,2]
[408585756,1773904329633,-606.713391,0.000164,2]
[408585757,1773904329642,-606.713391,0.000164,2]
[408585758,1773904329651,-606.713396,0.000164,2]
[408585759,1773904329661,-347.58021,0.000164,2]
[408585760,1773904329670,-347.58021,0.000164,2]
[408585761,1773904329680,-347.58021,0.000164,2]
[408585762,1773904329689,-151.0,0.000164,2]
[408585763,1773904329699,-347.580212,0.000164,2]
[408585764,1773904329708,-166.53154,0.000164,2]
[408585765,1773904329719,-166.422128,0.000164,2]
[408585766,1773904329729,-409.478029,0.000164,2]
[408585767,1773904329738,-409.478029,0.000164,2]
[408585768,1773904329747,-151.0,0.000164,2]
[408585769,1773904329757,-409.478029,0.000164,2]
[408585770,1773904329767,-219.606629,0.000164,2]
[408585771,1773904329781,-409.478034,0.000164,2]
[408585772,1773904329791,-319.911065,0.000164,2]
[408585773,1773904329800,-319.911065,0.000164,2]
[408585774,1773904329811,-516.167895,0.000164,2]
[408585775,1773904329820,-319.911065,0.000164,2]
[408585776,1773904329829,-319.911065,0.000164,2]
[408585777,1773904329838,-516.167895,0.000164,2]
[408585778,1773904329848,-845.938546,0.000164,2]
[408585779,1773904329858,-516.167895,0.000164,2]
[408585780,1773904329868,-845.938546,0.000164,2]
[408585781,1773904329879,-151.0,0.000164,2]
[408585782,1773904329888,-845.938546,0.000164,2]
[408585783,1773904329898,-516.167888,0.000164,2]
[408585784,1773904329908,-151.0,0.000164,2]
[408585785,1773904329917,-845.938546,0.000164,2]
[408585786,1773904329928,-492.914894,0.000164,2]
[408585787,1773904329938,-492.914894,0.000164,2]
[408585788,1773904329948,-476.059927,0.000164,2]
[408585789,1773904329958,-492.914894,0.000164,2]
[408585790,1773904329969,-151.0,0.000164,2]
[408585791,1773904329979,-2138.057356,0.000164,2]
[408585792,1773904329988,-476.059927,0.000164,2]
[408585793,1773904329998,-492.914894,0.000164,2]
[408585794,1773904330008,-9038.014018,0.000164,2]
[408585795,1773904330018,-151.0,0.000164,2]
[408585796,1773904330028,-770.064578,0.000164,2]
[408585797,1773904330038,-2138.057356,0.000164,2]
[408585798,1773904330047,-476.059927,0.000164,2]
[408585799,1773904330057,-176.670701,0.000164,2]
[408585800,1773904330067,-770.064578,0.000164,2]
[408585801,1773904330077,-9038.014018,0.000164,2]
[408585802,1773904330086,-2138.057356,0.000164,2]
[408585803,1773904330096,-476.059927,0.000164,2]
[408585804,1773904330106,-761.863263,0.000164,2]
[408585805,1773904330116,-770.064578,0.000164,2]
[408585806,1773904330126,-9038.014018,0.000164,2]
[408585807,1773904330136,-2138.057356,0.000164,2]
[408585808,1773904330146,-770.064578,0.000164,2]
[408585809,1773904330157,-277.136968,0.000164,2]
[408585810,1773904330170,-9038.014018,0.000164,2]
[408585811,1773904330180,-277.136968,0.000164,2]
[408585812,1773904330189,-277.136968,0.000164,2]
[408585813,1773904330202,-2061.693744,0.000164,2]
[408585814,1773904330211,-1475.861647,0.000164,2]
[408585815,1773904330222,-277.136968,0.000164,2]
[408585816,1773904330232,-2061.693744,0.000164,2]
[408585817,1773904330242,-761.863263,0.000164,2]
[408585818,1773904330251,-1475.861647,0.000164,2]
[408585819,1773904330261,-2061.693744,0.000164,2]
[408585820,1773904330271,-761.863263,0.000164,2]
[408585821,1773904330280,-258.166951,0.000164,2]
[408585822,1773904330290,-1475.861647,0.000164,2]
[408585823,1773904330299,-2061.693744,0.000164,2]
[408585824,1773904330309,-761.863263,0.000164,2]
[408585825,1773904330318,-258.166951,0.000164,2]
[408585826,1773904330328,-1475.861647,0.000164,2]
[408585827,1773904330338,-151.0,0.000164,2]
[408585828,1773904330347,-1111.289819,0.000164,2]
[408585829,1773904330362,-258.166951,0.000164,2]
[408585830,1773904330372,-151.0,0.000164,2]
[408585831,1773904330382,-258.166951,0.000164,2]
[408585832,1773904330393,-1111.289819,0.000164,2]
[408585833,1773904330403,-233.477044,0.000164,2]
[408585834,1773904330413,-151.0,0.000164,2]
[408585835,1773904330422,-1111.289819,0.000164,2]
[408585836,1773904330432,-2210.994346,0.000164,2]
[408585837,1773904330441,-233.477044,0.000164,2]
[408585838,1773904330451,-1111.289819,0.000164,2]
[408585839,1773904330460,-506.147903,0.000164,2]
[408585840,1773904330471,-494.679449,0.000164,2]
[408585841,1773904330480,-2210.994346,0.000164,2]
[408585842,1773904330490,-233.477044,0.000164,2]
[408585843,1773904330500,-506.147903,0.000164,2]
[408585844,1773904330510,-2210.994346,0.000164,2]
[408585845,1773904330520,-494.679449,0.000164,2]
[408585846,1773904330530,-233.477044,0.000164,2]
[408585847,1773904330540,-506.147903,0.000164,2]
[408585848,1773904330549,-2210.994346,0.000164,2]
[408585849,1773904330559,-494.679449,0.000164,2]
[408585850,1773904330568,-506.147903,0.000164,2]
[408585851,1773904330578,-494.679444,0.000164,2]
[408585852,1773904330588,-151.0,0.000164,2]
[408585853,1773904330598,-151.0,0.000164,2]
[408585854,1773904330608,-760.206708,0.000164,2]
[408585855,1773904330618,-760.206708,0.000164,2]
[408585856,1773904330629,-151.0,0.000164,2]
[408585857,1773904330639,-151.0,0.000164,2]
[408585858,1773904330648,-760.206708,0.000164,2]
[408585859,1773904330658,-760.206708,0.000164,2]
[408585860,1773904330668,-280.24666,0.000164,2]
[408585861,1773904330678,-280.24666,0.000164,2]
[408585862,1773904330688,-1370.881087,0.000164,2]
[408585863,1773904330697,-151.0,0.000164,2]
[408585864,1773904330709,-280.24666,0.000164,2]
[408585865,1773904330719,-1370.881087,0.000164,2]
[408585866,1773904330729,-280.24666,0.000164,2]
[408585867,1773904330738,-1370.881087,0.000164,2]
[408585868,1773904330748,-1370.881087,0.000164,2]
[408585869,1773904330758,-151.0,0.000164,2]
[408585870,1773904330768,-4518.228758,0.000164,2]
[408585871,1773904330777,-177.47181,0.000164,2]
[408585872,1773904330788,-2289.291087,0.000164,2]
[408585873,1773904330798,-151.0,0.000164,2]
[408585874,1773904330808,-177.47181,0.000164,2]
[408585875,1773904330818,-4518.228758,0.000164,2]
[408585876,1773904330828,-2289.291087,0.000164,2]
[408585877,1773904330838,-151.0,0.000164,2]
[408585878,1773904330849,-177.47181,0.000164,2]
[408585879,1773904330859,-151.0,0.000164,2]
[408585880,1773904330868,-4518.228758,0.000164,2]
[408585881,1773904330879,-2289.291087,0.000164,2]
[408585882,1773904330888,-151.0,0.000164,2]
[408585883,1773904330899,-151.0,0.000164,2]
[408585884,1773904330909,-177.47181,0.000164,2]
[408585885,1773904330919,-4518.228758,0.000164,2]
[408585886,1773904330929,-151.0,0.000164,2]
[408585887,1773904330939,-2289.291087,0.000164,2]
[408585888,1773904330949,-151.0,0.000164,2]
[408585889,1773904330959,-155.189074,0.000164,2]
[408585890,1773904330969,-151.0,0.000164,2]
[408585891,1773904330979,-151.0,0.000164,2]
[408585892,1773904330989,-151.0,0.000164,2]
[408585893,1773904330999,-155.189074,0.000164,2]
[408585894,1773904331009,-151.0,0.000164,2]
[408585895,1773904331019,-151.0,0.000164,2]
[408585896,1773904331029,-155.189074,0.000164,2]
[408585897,1773904331038,-2173.0,0.00016409,2]
[408585898,1773904331048,-2173.0,0.00016415,2]
[408585899,1773904331058,-150.0,0.00016425,2]
[408585900,1773904331067,-706.1,0.00016438,2]
[408585901,1773904331077,-151.0,0.00016438,2]
[408585902,1773904331087,-500.0,0.00016438,2]
[408585903,1773904331097,-500.0,0.00016438,2]
[408585904,1773904331108,-500.0,0.00016438,2]
[408585905,1773904331117,-500.0,0.00016438,2]
[408585906,1773904331127,-500.0,0.00016438,2]
[408585907,1773904331137,-500.0,0.00016438,2]
[408585908,1773904331147,-500.0,0.00016438,2]
[408585909,1773904331158,-500.0,0.00016438,2]
[408585910,1773904331173,-500.0,0.00016438,2]
[408585911,1773904331183,-500.0,0.00016438,2]
[408585912,1773904331193,-500.0,0.00016438,2]
[408585913,1773904331204,-500.0,0.00016438,2]
[408585914,1773904331213,-537.40768111,0.00016438,2]
[408585915,1773904331223,-500.0,0.00016438,2]
[408585916,1773904331234,-500.0,0.00016438,2]
[408585917,1773904331244,-500.0,0.00016438,2]
[408585918,1773904331254,-500.0,0.00016438,2]
[408585919,1773904331263,-451.91366728,0.00016438,2]
[408585920,1773904331273,-500.0,0.00016438,2]
[408585921,1773904331283,-500.0,0.00016438,2]
[408585922,1773904331293,-500.0,0.00016438,2]
[408585923,1773904331303,-500.0,0.00016438,2]
[408585924,1773904331314,-500.0,0.00016438,2]
[408585925,1773904331323,-500.0,0.00016438,2]
[408585926,1773904331334,-500.0,0.00016438,2]
[408585927,1773904331344,-500.0,0.00016438,2]
[408585928,1773904331354,-500.0,0.00016438,2]
[408585929,1773904331363,-500.0,0.00016438,2]
[408585930,1773904331373,-500.0,0.00016438,2]
[408585931,1773904331382,-500.0,0.00016438,2]
[408585932,1773904331392,-500.0,0.00016438,2]
[408585933,1773904331402,-500.0,0.00016438,2]
[408585934,1773904331412,-500.0,0.00016438,2]
[408585935,1773904331422,-500.0,0.00016438,2]
[408585936,1773904331431,-509.15880791,0.00016438,2]
[408585937,1773904331441,-789.12,0.00016438,2]
[408585938,1773904331451,-2874.03,0.00016438,2]
[408585939,1773904331461,-151.0,0.00016438,2]
[408585940,1773904331471,-151.0,0.00016438,2]
[408585941,1773904331481,-151.0,0.00016438,2]
[408585942,1773904331491,-151.0,0.00016438,2]
[408585943,1773904331500,-151.0,0.00016438,2]
[408585944,1773904331510,-151.0,0.00016438,2]
[408585945,1773904331520,-151.0,0.00016438,2]
[408585946,1773904331529,-151.0,0.00016438,2]
[408585947,1773904331539,-151.0,0.00016438,2]
[408585948,1773904331549,-151.0,0.00016438,2]
[408585949,1773904331790,-273.852834,0.00016438,2]
[408585950,1773904331803,-232.502635,0.00016438,2]
[408585951,1773904331814,-232.502635,0.00016438,2]
[408585952,1773904331823,-232.502635,0.00016438,2]
[408585953,1773904331833,-232.502635,0.00016438,2]
[408585954,1773904331843,-232.502635,0.00016438,2]
[408585955,1773904331853,-232.502635,0.00016438,2]
[408585956,1773904331862,-232.502635,0.00016438,2]
[408585957,1773904331871,-232.502635,0.00016438,2]
[408585958,1773904331881,-232.502635,0.00016438,2]
[408585959,1773904331890,-232.502635,0.00016438,2]
[408585960,1773904331899,-232.502635,0.00016438,2]
[408585961,1773904331908,-232.502635,0.00016438,2]
[408585962,1773904331918,-232.502635,0.00016438,2]
[408585963,1773904331927,-232.502635,0.00016438,2]
[408585964,1773904331937,-232.502635,0.00016438,2]
[408585965,1773904331946,-232.502635,0.00016438,2]
[408585966,1773904331956,-151.0,0.00016438,2]
[408585967,1773904331968,-151.0,0.00016438,2]
[408585968,1773904331979,-151.0,0.00016438,2]
[408585969,1773904331989,-151.0,0.00016438,2]
[408585970,1773904331998,-151.0,0.00016438,2]
[408585971,1773904332009,-151.0,0.00016438,2]
[408585972,1773904332019,-151.0,0.00016438,2]
[408585973,1773904332030,-151.0,0.00016438,2]
[408585974,1773904332041,-151.0,0.00016438,2]
[408585975,1773904332051,-151.0,0.00016438,2]
[408585976,1773904332061,-151.0,0.00016438,2]
[408585977,1773904332070,-294.560932,0.00016438,2]
[408585978,1773904332080,-889.202215,0.00016438,2]
[408585979,1773904332090,-889.202215,0.00016438,2]
[408585980,1773904332099,-889.202215,0.00016438,2]
[408585981,1773904332109,-889.202215,0.00016438,2]
[408585982,1773904332119,-889.202215,0.00016438,2]
[408585983,1773904332129,-889.202215,0.00016438,2]
[408585984,1773904332140,-889.202215,0.00016438,2]
[408585985,1773904332149,-889.202215,0.00016438,2]
[408585986,1773904332163,-889.202215,0.00016438,2]
[408585987,1773904332173,-889.202215,0.00016438,2]
[408585988,1773904332183,-889.202215,0.00016438,2]
[408585989,1773904332193,-889.202215,0.00016438,2]
[408585990,1773904332204,-889.202215,0.00016438,2]
[408585991,1773904332214,-889.202215,0.00016438,2]
[408585992,1773904332225,-889.202215,0.00016438,2]
[408585993,1773904332237,-889.202215,0.00016438,2]
[408585994,1773904332249,-889.202215,0.00016438,2]
[408585995,1773904332258,-889.202215,0.00016438,2]
[408585996,1773904332268,-889.202215,0.00016438,2]
[408585997,1773904332277,-889.202206,0.00016438,2]
[408585998,1773904332287,-151.0,0.00016438,2]
[408585999,1773904332297,-156.600451,0.00016438,2]
[408586000,1773904332306,-3000.0,0.00016438,2]
[408586001,1773904332315,-3000.0,0.00016438,2]
[408586002,1773904332326,-2758.48613474,0.00016438,2]
[408586003,1773904332336,-500.0,0.00016438,2]
[408586004,1773904332347,-3000.0,0.00016438,2]
[408586005,1773904332357,-232.1008695,0.00016438,2]
[408586006,1773904332367,-3000.0,0.00016438,2]
[408586007,1773904332377,-4300.0,0.00016463,7]
[408586008,1773904332386,-2173.0,0.00016468,2]
[408586009,1773904332396,-2173.0,0.00016477,2]
[408586010,1773904332406,-152.0,0.00016484,15]
[408586011,1773904332415,-200.0,0.00016485,2]
[408586012,1773904332425,-200.0,0.00016485,2]
[408586013,1773904332435,-502.48182446,0.0001649,3]
[408586014,1773904332445,-2173.0,0.00016491,2]
[408586015,1773904332455,-803.09530237,0.00016493,2]
[408586016,1773904332465,-170.55,0.00016493,2]
[408586017,1773904332475,-2402.0,0.00016495,2]
[408586018,1773904332484,-2173.0,0.00016517,2]
[408586019,1773904332495,-150.0,0.00016537,2]
[408586020,1773904332505,-803.09530237,0.00016548,2]
[408586021,1773904332515,-500.0,0.00016548,2]
[408586022,1773904332524,-2173.0,0.00016576,2]
[408586023,1773904332534,-2173.0,0.00016587,2]
[408586024,1773904332544,-3090.0,0.00016588,2]
[408586025,1773904332553,-362.92229411,0.000166,2]
[408586026,1773904332564,-803.09530237,0.00016603,2]
[408586027,1773904332574,-355.429103,0.0001661,7]
[408586028,1773904332584,-501.0,0.00016625,4]
[408586029,1773904332594,-2173.0,0.00016628,2]
[408586030,1773904332604,-152.0,0.00016631,16]
[408586031,1773904332613,-1567.0,0.00016645,2]
[408586032,1773904332623,-150.0,0.0001665,2]
[408586033,1773904332634,-200.0,0.0001665,2]
[408586034,1773904332643,-200.0,0.0001665,2]
[408586035,1773904332653,-4000.0,0.0001667,2]
[408586036,1773904332663,-161.0,0.00016671,2]
[408586037,1773904332673,-803.09530237,0.00016685,2]
[408586038,1773904332683,-155.06,0.00016699,2]
[408586039,1773904332692,-706.1,0.00016712,2]
[408586040,1773904332702,-166.84,0.00016712,2]
[408586041,1773904332711,-803.09530237,0.0001674,2]
[408586042,1773904332721,-5698.0,0.00016745,2]
[408586043,1773904332731,-150.0,0.00016762,2]
[408586044,1773904332741,-152.0,0.00016778,17]
[408586045,1773904332750,-300.0,0.00016799,2]
[408586046,1773904332760,-300.0,0.00016799,2]
[408586047,1773904332770,-13539.7605,0.000168,2]
[408586048,1773904332779,-900.0,0.00016805,2]
[408586049,1773904332789,-803.09530237,0.00016822,2]
[408586050,1773904332799,-3108.81,0.00016823,2]
[408586051,1773904332809,-278.41,0.00016823,2]
[408586052,1773904332819,-238.97,0.00016823,2]
[408586053,1773904332828,-162.01,0.00016823,2]
[408586054,1773904332839,-238.78,0.00016823,2]
[408586055,1773904332848,-2216.87,0.00016823,2]
[408586056,1773904332857,-208.65,0.00016823,2]
[408586057,1773904332867,-242.58,0.00016823,2]
[408586058,1773904332877,-1400.57,0.00016823,2]
[408586059,1773904332887,-310.88,0.00016823,2]
[408586060,1773904332897,-1000.0,0.00016849,7]
[408586061,1773904332907,-268.72609511,0.00016874,5]
[408586062,1773904332917,-150.0,0.00016875,2]
[408586063,1773904332927,-803.09530237,0.00016877,2]
[408586064,1773904332938,-1567.0,0.00016885,2]
[408586065,1773904332948,-336.01339877,0.00016888,2]
[408586066,1773904332959,-1119.95,0.000169,2]
[408586067,1773904332968,-3665.66,0.000169,2]
[408586068,1773904332978,-152.0,0.00016925,18]
[408586069,1773904332988,-803.09530237,0.00016959,2]
[408586070,1773904332998,-706.1,0.00016986,2]
[408586071,1773904333009,-2567.21732056,0.00016986,2]
[408586072,1773904333019,-3500.0,0.00016986,2]
[408586073,1773904333029,-3500.0,0.00016986,2]
[408586074,1773904333039,-3500.0,0.00016986,2]
[408586075,1773904333049,-150.0,0.00016987,2]
[408586076,1773904333060,-151.0,0.00016997,2]
[408586077,1773904333069,-151.0,0.00016997,2]
[408586078,1773904333079,-300.0,0.00016999,2]
[408586079,1773904333089,-300.0,0.00016999,2]
[408586080,1773904333098,-258.32636985,0.00016999,2]
[408586081,1773904333108,-309.78624853,0.00016999,2]
[408586082,1773904333117,-92850.69372396,0.00017,2]
[408586083,1773904333632,-8850.142178,0.00017,2]
[408586084,1773904333652,-327.4245001,0.00017,2]
[408586085,1773904333679,-47598.08281007,0.00017,2]
[408586086,1773904333690,-377.0455958,0.00017,2]
[408586087,1773904333701,-719.249995,0.00017,2]
[408586088,1773904333712,-966.59,0.00017,2]
[408586089,1773904338322,1332.292,9.45e-05,2]
[408586090,1773904338385,153.443,9.45e-05,2]
[408586092,1773904380870,169.67,0.00016,120]
[408586093,1773904395899,970.925964,9.493e-05,2]
[408586094,1773904541551,-18442.03757864,0.00047734,52]
[408586095,1773904541620,-50000.0,0.00047734,53]
[408586096,1773904541688,-967.53922713,0.00047734,120]
[408586097,1773904541755,-5000.0,0.00047734,30]
[408586098,1773904541821,-250.0,0.00047734,120]
[408586099,1773904541888,-250.0,0.00047734,120]
[408586100,1773904541962,-316.57,0.00047734,120]
[408586101,1773904542029,-195000.0,0.00047734,120]
[408586102,1773904542108,-1000.0,0.00047734,31]
[408586103,1773904542180,-1000.0,0.00047734,31]
[408586104,1773904542248,-1000.0,0.00047734,31]
[408586105,1773904542317,-1000.0,0.00047734,31]
[408586106,1773904542382,-1000.0,0.00047734,31]
[408586107,1773904542455,-1000.0,0.00047734,31]
[408586108,1773904542525,-1000.0,0.00047734,31]
[408586109,1773904542593,-1000.0,0.00047734,31]
[408586110,1773904542659,-1000.0,0.00047734,31]
[408586111,1773904542726,-500.0,0.00047734,120]
[408586112,1773904542798,-500.0,0.00047734,120]
[408586113,1773904542868,-500.0,0.00047734,120]
[408586114,1773904542936,-750010.48532043,0.00047734,60]
[408586115,1773904543012,-2256.17251753,0.00047734,30]
[408586116,1773904543078,-1828.47869906,0.00047734,120]
[408586117,1773904543143,-1036.87659093,0.00047734,120]
[408586118,1773904543210,-341.23234113,0.00047734,30]
[408586119,1773904543489,-4598.54135498,0.00047734,120]
[408586120,1773904543564,-505.34989794,0.00047734,120]
[408586121,1773904543631,-152.37501269,0.00047734,120]
[408586122,1773904543699,-13524.51051003,0.00047734,120]
[408586123,1773904543765,-150.0,0.00047734,31]
[408586124,1773904543837,-113074.89332915,0.00047734,30]
[408586125,1773904543926,-7091.8362641,0.00047734,120]
[408586126,1773904544009,-107064.83145699,0.00047734,30]
[408586127,1773904544085,-3250.0,0.00047734,30]
[408586128,1773904544158,-159.85011863,0.00047734,120]
[408586129,1773904544224,-1340.58674644,0.00047734,120]
[408586130,1773904544302,-2059.250226,0.00047734,120]
[408586131,1773904544379,-224.113892,0.00047734,120]
[408586132,1773904544474,-500.0,0.00047734,120]
[408586133,1773904544552,-500.0,0.00047734,120]
[408586134,1773904544625,-591.19617285,0.00047734,120]
[408586135,1773904544691,-2010.56203795,0.00047734,120]
[408586136,1773904544760,-295.47828638,0.00047734,60]
[408586137,1773904544828,-307.5642774,0.00047734,120]
[408586138,1773904544898,-8694.0,0.00047734,120]
[408586139,1773904544981,-32000.0,0.00047734,120]
[408586140,1773904545050,-940.344757,0.00047734,120]
[408586141,1773904545124,-33882.0,0.00047734,30]
[408586142,1773904545192,-600.45051754,0.00047734,120]
[408586143,1773904545255,-429607.43182825,0.00047734,30]
[408586144,1773904545318,-395.484682,0.00047734,120]
[408586145,1773904545383,-27363.88,0.00047734,120]
[408586146,1773904545448,-348.5136015,0.00047734,120]
[408586147,1773904545514,-732.64,0.00047734,120]
[408586148,1773904545580,-6722.52702018,0.00047734,120]
[408586149,1773904545645,-5000.0,0.00047734,120]
[408586150,1773904545710,-174.90016069,0.00047734,120]
[408586151,1773904545778,-5000.0,0.00047734,120]
[408586152,1773904545851,-5000.0,0.00047734,120]
[408586153,1773904545923,-5000.0,0.00047734,120]
[408586154,1773904545992,-5000.0,0.00047734,120]
[408586155,1773904546055,-5000.0,0.00047734,120]
[408586156,1773904546123,-5000.0,0.00047734,120]
[408586157,1773904546191,-5000.0,0.00047734,120]
[408586158,1773904546254,-5000.0,0.00047734,120]
[408586159,1773904546316,-1451.59671357,0.00047734,30]
[408586160,1773904546379,-4463.56,0.00047734,120]
[408586161,1773904546453,-188.00575387,0.00047734,30]
[408586162,1773904546525,-159.87783672,0.00047734,60]
[408586163,1773904546594,-157.15539583,0.00047734,60]
[408586164,1773904546662,-4854.43679952,0.00047734,30]
[408586165,1773904546730,-150.34143178,0.00047734,30]
[408586166,1773904546801,-3814.94483585,0.00047734,30]
[408586167,1773904546869,-163.47878392,0.00047734,120]
[408586168,1773904546934,-162.23578178,0.00047734,30]
[408586169,1773904546997,-150.15855158,0.00047734,120]
[408586170,1773904547063,-151.26955709,0.00047734,120]
[408586171,1773904547132,-273.0692238,0.00047734,30]
[408586172,1773904547195,-30233.01,0.00047734,90]
[408586173,1773904547259,-200676.15324158,0.00047734,120]
[408586174,1773904547327,-858.91851446,0.00047734,31]
[408586175,1773904547392,-750.0,0.00047734,30]
[408586176,1773904547466,-5000.0,0.00047734,120]
[408586177,1773904547532,-5067.0,0.00047734,120]
[408586178,1773904547599,-153.85411066,0.00047734,30]
[408586179,1773904547667,-266338.653159,0.00047734,120]
[408586180,1773904547731,-350153.07337547,0.00047734,30]
[408586181,1773904547799,-4205.36304232,0.00047734,120]
[408586182,1773904547865,-463.99329522,0.00047734,120]
[408586183,1773904547932,-15881.75031552,0.00047734,120]
[408586184,1773904548007,-259.15251403,0.00047734,120]
[408586185,1773904548077,-8137.03407822,0.00047734,60]
[408586186,1773904548150,-170000.0,0.00047734,30]
[408586187,1773904548216,-212.82,0.00047734,120]
[408586188,1773904548285,-375.04682483,0.00047734,30]
[408586189,1773904548369,-258.41723446,0.00047734,120]
[408586190,1773904548437,-429.65765908,0.00047734,120]
[408586191,1773904548501,-5557.81341247,0.00047734,90]
[408586192,1773904548566,-312.40614781,0.00047734,120]
[408586193,1773904548634,-389.95,0.00047734,30]
[408586194,1773904548706,-389.95,0.00047734,30]
[408586195,1773904548769,-475.49,0.00047734,30]
[408586196,1773904548835,-300.0,0.00047734,30]
[408586197,1773904548907,-152.21,0.00047734,30]